Cogmind - Beta 14 @@@ ROGUE MODE // 2024.09.17 @ 12:08:17 Player: Mallow Result: Destroyed by D-53 Grenadier with Mini Grenade Launcher Performance ------------- Evolutions (0) 0 Regions Visited (4) 800 Robots Destroyed (5) 25 Value Destroyed (105) 105 Prototype IDs (23) 460 Alien Tech Used (0) 0 Bonus (360) 360 TOTAL SCORE: 1750 Bonus ------- Follower Combat Kills 60 Aligned with FarCom 300 Cogmind --------- Core Integrity 0/250 Matter 300/300 Energy 99/100 System Corruption 0% Temperature Cool (0) Movement Core (100) Ox1 Location -9/Mines Parts ------- > --- POWER (1) -------- (None) > --- PROPULSION (2) --- (None) > --- UTILITY (2) ------ Small Storage Unit > --- WEAPON (2) ------- (None) > --- INVENTORY (8) ---- Ion Engine Light Ion Engine Light Treads Sensor Array Assault Rifle Light Assault Rifle Longsword +1 Peak State ------------ > --- POWER ------------ Ion Engine > --- PROPULSION ------- Light Treads Light Treads > --- UTILITY ---------- Small Storage Unit Backup Plating I > --- WEAPON ----------- Grenade Launcher Longsword +1 > --- INVENTORY -------- Ion Engine Light Ion Engine Light Treads Sensor Array Assault Rifle Light Assault Rifle [Rating: 14] Favorites ----------- Power Ion Engine Engine Ion Engine Propulsion Light Treads Treads Light Treads Utility Small Storage Unit Storage Small Storage Unit Protection Backup Plating I Weapon Assault Rifle Ballistic Gun Assault Rifle Launcher Grenade Launcher Slashing Weapon Longsword +1 Build | -11 -10 -10 -10 -9 ------- Run | Yrd Mat Min Exi Min Slots Evolved . | . . . . . Power . | . . . . . Propulsion . | . . . . . Utility . | . . . . . Weapon . | . . . . . Parts Attached 8 | 6 1 . 1 . Power 1 | 1 . . . . Engine 1 | 1 . . . . Core . | . . . . . Reactor . | . . . . . Propulsion 2 | 2 . . . . Treads 2 | 2 . . . . Leg . | . . . . . Wheel . | . . . . . Hover . | . . . . . Flight . | . . . . . Utility 1 | 1 . . . . Device . | . . . . . Storage 1 | 1 . . . . Processor . | . . . . . Hackware . | . . . . . Protection . | . . . . . Artifact . | . . . . . Weapon 4 | 2 1 . 1 . Energy Gun . | . . . . . Energy Cannon . | . . . . . Ballistic Gun 2 | 2 . . . . Ballistic Cannon . | . . . . . Launcher 1 | . 1 . . . Special Weapon . | . . . . . Impact Weapon . | . . . . . Slashing Weapon 1 | . . . 1 . Piercing Weapon . | . . . . . Special Melee Weapon . | . . . . . Unidentified Prototypes . | . . . . . Parts Lost 3 | . . . . 3 Power 1 | . . . . 1 Propulsion . | . . . . . Utility 1 | . . . . 1 Weapon 1 | . . . . 1 Highest Loss Streak 3 | . . . . 3 To Critical Strikes . | . . . . . Average Slot Usage (%) 98 | . 97 100 100 79 Engine 13 | . 14 14 14 10 Treads 27 | . 28 28 28 22 Storage 14 | . 14 14 14 14 Protection 13 | . 11 14 14 10 Ballistic Gun 13 | . 15 14 14 . Launcher 13 | . 12 14 14 8 Peak Build Rating 14 | 6 7 7 14 14 Average Rating 7 | 5 6 7 7 11 On Entrance 6 | . 6 7 7 14 Naked Turns . | . . . . . Heaviest Build 17 | 13 16 16 17 17 Greatest Support 40 | 40 40 40 40 40 Greatest Overweight (x) 1 | . . . . 1 Average Overweight (x) . | . . . . . Largest Inventory Capacity 8 | 8 8 8 8 8 Average Capacity 7 | 7 8 8 8 8 Most Carried 7 | 1 4 5 7 7 Average Carried 4 | . 2 4 5 6 Final Capacity 8 | 8 8 8 8 8 Final Carried 7 | 1 4 5 6 7 Class Distribution -------------------- 100% | Mutant Dominant Class ---------------- Mutant | -10/Materials Mutant | -10/Mines Mutant | -10/Exiles Mutant | -9/Mines Resources | -11 -10 -10 -10 -9 ----------- Run | Yrd Mat Min Exi Min Matter Collected 304 | 184 74 46 . . Remotely . | . . . . . Salvage Created 78 | . 78 . . . Parts 7 | . 5 2 . . Haulers Intercepted . | . . . . . Recyclers Shooed 2 | . . 2 . . Parts Field Recycled . | . . . . . Retrieved Matter . | . . . . . Parts Self-Destructed . | . . . . . Prevented . | . . . . . Kills | -11 -10 -10 -10 -9 ------- Run | Yrd Mat Min Exi Min Combat Hostiles Destroyed 2 | . 2 . . . AOE 2 | . 2 . . . Classes Destroyed 4 | . 3 1 . . Worker 1 | . 1 . . . Tunneler 1 | . . 1 . . Operator 1 | . 1 . . . Grunt 2 | . 2 . . . Best Kill Streak 3 | . 3 1 . . Combat Bots Only 2 | . 2 . . . Max Kills in Single Turn 2 | . 2 1 . . Gunslinging . | . . . . . Exploded 2 | . 2 . . . Melee . | . . . . . Uniques/NPCs Destroyed . | . . . . . Combat | -11 -10 -10 -10 -9 -------- Run | Yrd Mat Min Exi Min Hostile Shots Fired 32 | . 7 3 . 22 Missed 9 | . 3 1 . 5 Damage Taken 884 | . 88 34 . 762 Core 256 | . 5 . . 251 Absorbed by Shields . | . . . . . Core Remaining (%) 100 | 100 . . . . Volleys Fired 4 | . 4 . . . Largest 2 | . 2 . . . Hottest 50 | . 50 . . . Shots Fired 7 | . 7 . . . Gun 4 | . 4 . . . Cannon . | . . . . . Launcher 3 | . 3 . . . Special . | . . . . . Kinetic 4 | . 4 . . . Thermal . | . . . . . Explosive 3 | . 3 . . . Electromagnetic . | . . . . . Robot Hit Streak 2 | . 2 . . . Robot Miss Streak 1 | . 1 . . . Penetration Max . | . . . . . Secondary Targets . | . . . . . Shots Hit Robots 4 | . 4 . . . Core Hits 8 | 1 7 . . . Critical Kills . | . . . . . Critical Parts Destroyed . | . . . . . Critical Strikes . | . . . . . Melee Attacks . | . . . . . Impact . | . . . . . Slashing . | . . . . . Piercing . | . . . . . Sneak Attacks . | . . . . . Combat Hostiles . | . . . . . Follow-up Attacks . | . . . . . Damage Inflicted 241 | 4 203 34 . . Guns 10 | . 10 . . . Cannons . | . . . . . Explosions 191 | . 191 . . . Melee . | . . . . . Ramming 40 | 4 2 34 . . Kinetic 10 | . 10 . . . Thermal . | . . . . . Explosive 191 | . 191 . . . Electromagnetic . | . . . . . Impact . | . . . . . Slashing . | . . . . . Piercing . | . . . . . Highest Corruption . | . . . . . Average Corruption . | . . . . . Corruption Purged . | . . . . . Corruption Blocked . | . . . . . Overload Shots . | . . . . . Overflow Damage . | . . . . . Projectiles . | . . . . . Explosions . | . . . . . Melee . | . . . . . Knockbacks . | . . . . . Impact . | . . . . . Kinetic . | . . . . . Secondary . | . . . . . Self-Inflicted Damage 34 | . 34 . . . Shots 2 | . 2 . . . Rammed 8 | 2 . 6 . . Targets Rammed 10 | 2 1 7 . . Kicked . | . . . . . Crushed 2 | . 1 1 . . Highest Temperature 15 | . 15 . . . Average Temperature 9 | . 9 . . . Received Heat Transfer 51 | . 33 18 . . Siege Activations . | . . . . . Robots Corrupted . | . . . . . Combat Hostiles . | . . . . . Parts Fried . | . . . . . Impact Corruptions . | . . . . . Robots Melted . | . . . . . Combat Hostiles . | . . . . . Parts Melted . | . . . . . Heat Transferred . | . . . . . Parts Sabotaged . | . . . . . Parts Stolen . | . . . . . Parts Stripped . | . . . . . Power Chain Reactions . | . . . . . Alert | -11 -10 -10 -10 -9 ------- Run | Yrd Mat Min Exi Min Peak Influence 113 | . 113 71 . . Initial 43 | . . 43 . . Average 33 | . 57 34 . . Maximum Alert Level . | . . . . . Low Security (%) 100 | 100 100 100 . 100 Level 1 . | . . . . . Level 2 . | . . . . . Level 3 . | . . . . . Level 4 . | . . . . . Level 5 . | . . . . . High Security . | . . . . . Max Security . | . . . . . Squads Dispatched . | . . . . . Investigation . | . . . . . Extermination . | . . . . . Reinforcement . | . . . . . Assault . | . . . . . Garrison . | . . . . . Intercept . | . . . . . Searches Triggered . | . . . . . Construction Impeded . | . . . . . Haulers Reinforced . | . . . . . Active Scanning Responses . | . . . . . Cargo Convoy Interrupts . | . . . . . Stealth | -11 -10 -10 -10 -9 --------- Run | Yrd Mat Min Exi Min Distress Signals 1 | . . . . 1 Communications Jammed . | . . . . . Distress Signals . | . . . . . Times Spotted 20 | . 4 2 . 14 Peak Tracking Total 10 | . 2 1 . 10 Tactical Retreats . | . . . . . Traps | -11 -10 -10 -10 -9 ------- Run | Yrd Mat Min Exi Min Traps Triggered . | . . . . . Indirectly . | . . . . . Trap Hack Attempts . | . . . . . Triggered . | . . . . . Disarmed 4 | . 4 . . . Reprogrammed . | . . . . . Reused . | . . . . . Traps Extracted . | . . . . . Installed . | . . . . . Triggered . | . . . . . Machines | -11 -10 -10 -10 -9 ---------- Run | Yrd Mat Min Exi Min Machines Disabled . | . . . . . Max in Single Turn . | . . . . . Machines Repaired . | . . . . . Machines Dismantled . | . . . . . Machines Sabotaged . | . . . . . Overloaded Fab Kills . | . . . . . Hacking | -11 -10 -10 -10 -9 --------- Run | Yrd Mat Min Exi Min Machines Accessed 4 | . 3 . 1 . Terminals 2 | . 2 . . . Fabricators . | . . . . . Repair Stations 1 | . 1 . . . Recycling Units . | . . . . . Scanalyzers . | . . . . . Garrison Access . | . . . . . Total Hacks 9 | . 8 . 1 . Successful 5 | . 4 . 1 . Failed 4 | . 4 . . . Catastrophic 1 | . 1 . . . Database Lockouts . | . . . . . Manual 2 | . . . 2 . Terminals 7 | . 7 . . . Fabricators . | . . . . . Repair Stations 1 | . 1 . . . Recycling Units . | . . . . . Scanalyzers . | . . . . . Garrison Access . | . . . . . Terminal Hacks 4 | . 3 . 1 . Alert Level 1 | . 1 . . . Disarm Traps 2 | . 2 . . . Derelict Proto ID Bank 1 | . . . 1 . Fabricator Hacks . | . . . . . Repair Station Hacks 1 | . 1 . . . Refit 1 | . 1 . . . Recycling Unit Hacks . | . . . . . Scanalyzer . | . . . . . Garrison Access Hacks . | . . . . . Unauthorized Hacks . | . . . . . Terminals . | . . . . . Fabricators . | . . . . . Repair Stations . | . . . . . Recycling Units . | . . . . . Scanalyzers . | . . . . . Garrison Access . | . . . . . Data Cores Recovered . | . . . . . Used . | . . . . . Hacking Detections 2 | . 2 . . . Full Trace Events 1 | . 1 . . . Feedback Events . | . . . . . Feedback Blocked . | . . . . . Robot Schematics Acquired . | . . . . . Robots Built . | . . . . . Authchips . | . . . . . Time . | . . . . . Total Robot Build Rating . | . . . . . Part Schematics Acquired . | . . . . . Parts Built . | . . . . . Authchips . | . . . . . Time . | . . . . . Total Part Build Rating . | . . . . . Parts Repaired . | . . . . . Time . | . . . . . Parts Recycled . | . . . . . Recycled Matter . | . . . . . Retrieved Matter . | . . . . . Retrieved Components . | . . . . . Parts Scanalyzed . | . . . . . Part Schematics Acquired . | . . . . . Parts Damaged . | . . . . . Bothacking | -11 -10 -10 -10 -9 ------------ Run | Yrd Mat Min Exi Min Used RIF Installer . | . . . . . Robots Hacked . | . . . . . Non-combat . | . . . . . Combat . | . . . . . Robot Hacks Applied . | . . . . . Relay Couplers Released . | . . . . . Fabnet Peak Effective % . | . . . . . Robots Rewired . | . . . . . Allies Hacked . | . . . . . Hacks Repelled . | . . . . . Allies | -11 -10 -10 -10 -9 -------- Run | Yrd Mat Min Exi Min Total Allies 2 | . . 2 . . Largest Group 2 | . . 2 2 . Highest-Rated Group 42 | . . 42 42 . Highest-Rated Ally 31 | . . 31 31 . Total Orders . | . . . . . Ally Attacks 6 | . . 6 . . Total Damage 102 | . . 102 . . Kills 2 | . . 2 . . Allies Corrupted . | . . . . . Allies Melted . | . . . . . Intel | -11 -10 -10 -10 -9 ------- Run | Yrd Mat Min Exi Min Robot Analysis Total . | . . . . . Derelict Logs Recovered 3 | . . 3 . . Drone Launches . | . . . . . Drone Recoveries . | . . . . . Exploration | -11 -10 -10 -10 -9 ------------- Run | Yrd Mat Min Exi Min Turns Passed 1741 | 148 296 767 427 103 Spaces Moved 1056 | 88 175 457 266 70 Core 21 | 4 . . . 17 Treads 1035 | 84 175 457 266 53 Legs . | . . . . . Wheels . | . . . . . Hover . | . . . . . Flight . | . . . . . Fastest Speed 50 | 50 160 160 160 100 Average Speed 158 | 155 160 160 160 145 Slowest Speed 160 | 160 160 160 160 160 Overloaded Moves . | . . . . . Propulsion Burnouts . | . . . . . Robots Hopped . | . . . . . Cave-ins Triggered . | . . . . . Exploration Rate (%) 41 | 4 33 79 62 31 Regions Visited 4 Branch Regions 3 Pre-discovered Areas . | . . . . . Known Exits Taken 1 | . . . 1 . Unknown Exits Taken 3 | 1 1 1 . . Scrap Searched 1 | . . 1 . . Spaces Dug . | . . . . . Terrain Destroyed 15 | . 15 . . . Melee . | . . . . . Projectile . | . . . . . AOE 15 | . 15 . . . Terrain Rammed . | . . . . . Walls Destroyed . | . . . . . Machines Disabled . | . . . . . Actions | -11 -10 -10 -10 -9 --------- Run | Yrd Mat Min Exi Min Total 1109 | 96 183 489 268 73 Wait 25 | . . 25 . . Move 1052 | 87 174 456 265 70 Hop . | . . . . . Pick Up 6 | 1 3 1 1 . Fast Attach 6 | 6 . . . . Attach 1 | . . . 1 . Detach 2 | . . . 1 1 Swap 1 | . 1 . . . Drop 2 | . . . . 2 Fire 4 | . 4 . . . Melee . | . . . . . Ram . | . . . . . Kick . | . . . . . Crush 10 | 2 1 7 . . Escape Stasis . | . . . . . Rewire . | . . . . . Trap . | . . . . . Miscellaneous . | . . . . . Route ------- -11/Scrapyard -10/Materials -10/Mines -10/Exiles (discovered 2 exits: *Min x2) -9/Mines History --------- Turn | Location | Event 5 | -11/Scrapyard | Discovered new exit (range 15) 149 | -11/Scrapyard | Entered Materials 305 | -10/Materials | Build established: Mutant 321 | -10/Materials | Discovered new exit (range 16) 445 | -10/Materials | Entered Mines 455 | -10/Mines | Met a Derelict bent on vengeance 457 | -10/Mines | Found DCF Scrap (11 items) 1013 | -10/Mines | Learned location of 1 exit from Materials 1173 | -10/Mines | Deemed a non-threat by the Exiles lab entrance 1174 | -10/Mines | Discovered new exit (range 5) 1212 | -10/Mines | Entered Exiles 1212 | -10/Exiles | Accompanied by 2 allies 1213 | -10/Exiles | Identified exit to Mines 1242 | -10/Exiles | Led the pair of lost Derelicts to a safe place 1257 | -10/Exiles | Met 8R-AWN 1294 | -10/Exiles | Met EX-HEX 1361 | -10/Exiles | Met EX-BIN 1390 | -10/Exiles | Aligned with FarCom system 1392 | -10/Exiles | Given EX-Vault access code 1433 | -10/Exiles | Opened EX-Vault 1441 | -10/Exiles | Found Longsword +1 1476 | -10/Exiles | Warned to stay clear of 0b10 Research branches 1499 | -10/Exiles | Exiles lab attacked by MAIN.C 1639 | -10/Exiles | Left Exiles lab with Longsword +1 1639 | -10/Exiles | Entered Mines 1684 | -9/Mines | Assembled infested the area 1689 | -9/Mines | Assisted by a Guerilla fighting off Assembled 1728 | -9/Mines | Core integrity fell below 50% 1734 | -9/Mines | Core integrity fell below 20% 1742 | -9/Mines | Destroyed by D-53 Grenadier with Mini Grenade Launcher Last Messages --------------- as-39495 destroyed. HG-US7(h) destroyed. W1-DM0 destroyed. as-80913 destroyed. as-72681 destroyed. as-98885 destroyed. as-11583 destroyed. The unstable cave ceiling collapses. as-73670 destroyed. as-65841 destroyed. as-74549 destroyed. Grenade Launcher destroyed. Backup Plating I destroyed. The unstable cave ceiling collapses. Ion Engine destroyed. The unstable cave ceiling collapses. Dropped Lgt. Treads. The unstable cave ceiling collapses. Dropped Lgt. Treads. The unstable cave ceiling collapses. Map ----- +----------------------------------------------------+ | ?????????????????????????????????? | | ?????????????????????????????????? | | ?????????????????????????????????? | | ?????????????????????????????????? | | ?????????????????????????????????? | | ??????????????????????????? ???? | | ??????????????????????????? ??? | | ???????????????????????????? ?? | | ?????????????????????????????# ?? | | ??????????????????????????????#% ? | | ????????????????####??????????# # | | ????????????#### #########??# | | ???????###### ## #### | | ??????## # ### | | ??????# # #### | | ????### # | | ????# d | | ????# d # | | ????# ## # # ## | | ????# ?# #### ## | | ????# ## #??#### # # %% | | ???## ##????##### ###### | | ???# ##???????###????? | | ???## #??????????????? % | | ????# ##?????????????## | | ????# @ #??????????????# # | | ???# #?????????????# | | ???# $ ??????????## | | ??# ????????? | | ??# ####### #??????=% | | ??# #??????????????? | | ??## #??????????????? | | ???## ##??????????????? | | ????## ##???????????????????? | | ?????## ##????????????????????? | | ??????# #?????????????????????? | | ??????# #?????????????????????? | | ??????## ##?????????????????????? | | ???????? ???????????????????????? | | ???????? ???????????????????????? | | ???????? ???????????????????????? | | ?????????????????????????????????? | | ?????????????????????????????????? | | ?????????????????????????????????? | | ?????????????????????????????????? | | ?????????????????????????????????? | | ?????????????????????????????????? | | ?????????????????????????????????? | | ?????????????????????????????????? | | ?????????????????????????????????? | +----------------------------------------------------+ Best States ------------- Heat Dissipation 25 Energy Generation 10 Energy Capacity 250 Matter Stores 300 Matter Capacity 300 Sight Range 16 Terrain Scan Density 10 Armor Coverage 80 Evasion (%) 40 Recoil Reduction 2 Item Schematics ----------------- None Robot Schematics ------------------ None Fabricated ------------ Nothing Alien Tech Used ----------------- None Achievements -------------- None Challenges ------------ None Game ------ Seed ReflectiveMiningBuckler Manual? 0 Play Time 00:09:58 Cumulative 22.1 hours Start 2024.09.17 @ 11:57:52 End 2024.09.17 @ 12:08:17 Sessions 1 Manual Loads 0 Difficulty Rogue Special Mode None Game No. 44 Rogue 44 Adventurer 0 Explorer 0 Win Type - Total 0 Types 0/0/0/0/0/0/0/0/0 Lore% 11 Gallery% 27 Achievement% 19 Wizard Run 0 Options --------- Layout 1 ASCII 0 Keyboard 0 Movement Arrows Keybinds 0 Fullscreen 2 Font 24/Smallcaps Map View 50x35 Zoom Use 34% Tactical HUD 0 Map Filters NONE Filters NONE Steam 1 RUN: 7fe4f613-a9ed-477f-8416-d013a113a3b8